bitfinex/quotes_BTCUSD_20251207
["timestamp","ask_amount","ask_price","bid_price","bid_amount"]
[1765112419437,0.01116881,89535.0,89534.0,0.00911]
[1765112419636,0.01116869,89536.0,89534.0,0.00911]
[1765112419872,0.01116869,89536.0,89534.0,0.01011]
[1765112420077,0.01116856,89537.0,89534.0,0.01011]
[1765112420256,0.01116856,89537.0,89536.0,0.00911]
[1765112422560,0.22336127,89542.0,89536.0,0.02655287]
[1765112422935,0.03354483,89543.0,89536.0,0.02655287]
[1765112422936,0.01116769,89544.0,89542.0,0.02494]
[1765112423146,0.02163976,89544.0,89542.0,0.02494]
[1765112423359,0.03772018,89547.0,89542.0,0.02494]
[1765112423571,0.22334889,89546.0,89542.0,0.24829867]
[1765112423786,0.01116756,89545.0,89542.0,0.03610794]
[1765112423998,0.01116756,89545.0,89542.0,0.02494]
[1765112424200,0.23452135,89545.0,89542.0,0.04796]
[1765112424792,0.01800707,89549.0,89542.0,0.04796]
[1765112424793,0.01116707,89549.0,89544.0,0.01583]
[1765112425014,0.01116707,89549.0,89545.0,0.00911]
[1765112425223,0.2233439,89548.0,89545.0,0.00911]
[1765112425988,0.23451109,89548.0,89545.0,0.00911]
[1765112426413,0.22334868,89547.0,89545.0,0.00911]
[1765112427587,0.22334868,89547.0,89545.0,0.01011]
[1765112427784,0.22334868,89547.0,89545.0,0.00911]
[1765112428231,0.22334868,89547.0,89545.0,0.01011]
[1765112428453,0.22334868,89547.0,89545.0,0.01111]
[1765112431185,0.22334868,89547.0,89545.0,0.002]
[1765112432127,0.01116719,89548.0,89545.0,0.002]
[1765112432334,0.01116719,89548.0,89547.0,0.01583]
[1765112432761,0.01116719,89548.0,89547.0,0.03885]
[1765112433225,0.01116719,89548.0,89547.0,0.04046287]
[1765112433388,0.23451109,89548.0,89547.0,0.04046287]
[1765112433996,0.23451109,89548.0,89547.0,0.01744287]
[1765112435371,0.23451109,89548.0,89547.0,0.01844287]
[1765112435968,0.23451109,89548.0,89547.0,0.00261287]
[1765112437425,0.01116719,89548.0,89547.0,0.00261287]
[1765112438688,0.23451109,89548.0,89547.0,0.00261287]
[1765112441744,0.25066109,89548.0,89547.0,0.001]
[1765112441910,0.27428109,89548.0,89547.0,0.001]
[1765112444643,0.28339109,89548.0,89547.0,0.001]
[1765112450273,0.29385535,89548.0,89547.0,0.001]
[1765112450883,0.28339109,89548.0,89547.0,0.001]
[1765112451283,0.29385688,89548.0,89547.0,0.001]
[1765112452574,0.22339878,89526.0,89521.0,0.04914142]
[1765112452859,0.22340877,89522.0,89521.0,0.00011859]
[1765112454190,0.22340877,89522.0,89521.0,0.00411859]
[1765112454762,0.26317877,89522.0,89521.0,0.00811859]
[1765112455082,0.22340877,89522.0,89521.0,0.00811859]
[1765112455302,0.22340877,89522.0,89521.0,0.00411859]
[1765112455486,0.22340877,89522.0,89521.0,0.00611859]
[1765112455988,0.01117018,89524.0,89521.0,0.00773146]
[1765112457164,0.01117018,89524.0,89521.0,0.00569225]
[1765112457367,0.01116993,89526.0,89522.0,0.01117043]
[1765112457594,0.01116993,89526.0,89522.0,0.0127833]
[1765112458379,0.01117006,89525.0,89522.0,0.0127833]
[1765112458562,0.01117006,89525.0,89522.0,0.0147833]
[1765112459141,0.01116993,89526.0,89523.0,0.01117031]
[1765112459340,0.01116993,89526.0,89523.0,0.01278318]
[1765112460493,0.02859956,89529.0,89524.0,0.23457395]
[1765112460627,0.01116968,89528.0,89526.0,0.01634]
[1765112460822,0.01116968,89528.0,89526.0,0.01795287]
[1765112461656,0.01116956,89529.0,89527.0,0.04144065]
[1765112461858,0.01116956,89529.0,89528.0,0.01634]
[1765112462138,0.01116931,89531.0,89528.0,0.04109287]
[1765112462392,0.06703798,89532.0,89530.0,0.23972868]
[1765112462601,0.03354434,89538.0,89535.0,0.01116881]
[1765112463025,0.01116831,89539.0,89535.0,0.01116881]
[1765112463026,0.01116831,89539.0,89537.0,0.02545]
[1765112463462,0.01116856,89537.0,89534.0,0.01116894]
[1765112463870,0.01116856,89537.0,89533.0,0.01116906]
[1765112464418,0.01116869,89536.0,89533.0,0.01116906]
[1765112464762,0.24627857,89546.0,89536.0,0.01634]
[1765112464967,0.01116819,89540.0,89537.0,0.01634]
[1765112465201,0.01116819,89540.0,89538.0,0.00911]
[1765112465382,0.001,89539.0,89538.0,0.00911]
[1765112465619,0.01116806,89541.0,89538.0,0.04341844]
[1765112465811,0.01116794,89542.0,89539.0,0.01116831]
[1765112466111,0.01116806,89541.0,89538.0,0.02027844]
[1765112466438,0.01116794,89542.0,89539.0,0.01116831]
[1765112466846,0.01216781,89543.0,89540.0,0.01116819]
[1765112467075,0.01116781,89543.0,89540.0,0.01116819]
[1765112467488,0.01116794,89542.0,89539.0,0.03730831]
[1765112467719,0.01116794,89542.0,89539.0,0.01416831]
[1765112468419,0.01116794,89542.0,89540.0,0.002]
[1765112468852,0.01116769,89544.0,89541.0,0.02750806]
[1765112469052,0.23452264,89544.0,89541.0,0.01634]
[1765112469573,0.01116794,89542.0,89539.0,0.01316831]
[1765112469853,0.01116769,89544.0,89540.0,0.01416819]
[1765112470055,0.01116769,89544.0,89540.0,0.01116819]
[1765112470535,0.01116769,89544.0,89541.0,0.01216806]
[1765112470750,0.01116756,89545.0,89541.0,0.01216806]
[1765112471036,0.03144588,89546.0,89541.0,0.01216806]
[1765112471206,0.03144588,89546.0,89543.0,0.01116781]
[1765112472206,0.01116744,89546.0,89543.0,0.03385781]
[1765112472563,0.28770921,89548.0,89543.0,0.03385781]
[1765112472768,0.01116731,89547.0,89544.0,0.00911]
[1765112474375,0.01116731,89547.0,89544.0,0.01011]
[1765112475304,0.01116731,89547.0,89544.0,0.01211]
[1765112476494,0.25416719,89548.0,89546.0,0.01591]
[1765112476955,0.22334639,89547.0,89546.0,0.01591]
[1765112477149,0.25416719,89548.0,89546.0,0.01591]
[1765112477531,0.01116731,89547.0,89546.0,0.001]
[1765112477732,0.2345137,89547.0,89546.0,0.001]
[1765112477911,0.2345137,89547.0,89546.0,0.002]
[1765112478419,0.2345137,89547.0,89546.0,0.001]
[1765112479024,0.2345137,89547.0,89545.0,0.00911]
[1765112479432,0.01116731,89547.0,89546.0,0.002]
[1765112479634,0.2345137,89547.0,89546.0,0.002]
[1765112479831,0.01116731,89547.0,89546.0,0.003]
[1765112480357,0.01116719,89548.0,89546.0,0.003]
[1765112481117,0.01116719,89548.0,89546.0,0.002]
[1765112481242,0.01116719,89548.0,89545.0,0.00911]
[1765112481449,0.01116719,89548.0,89546.0,0.001]
[1765112481657,0.01116719,89548.0,89546.0,0.002]
[1765112482298,0.01116719,89548.0,89547.0,0.01591]
[1765112482491,0.0176,89552.0,89548.0,0.01116719]
[1765112482992,0.0176,89552.0,89549.0,0.00911]
[1765112483873,0.0176,89552.0,89549.0,0.02027707]
[1765112484049,0.0176,89552.0,89549.0,0.24361848]
[1765112484449,0.0176,89552.0,89549.0,0.02027707]
[1765112484644,0.0176,89552.0,89549.0,0.24361838]
[1765112485052,0.01116607,89557.0,89552.0,0.22333392]
[1765112485372,0.23449276,89555.0,89553.0,0.01591]
[1765112485969,0.01116632,89555.0,89553.0,0.01591]
[1765112486225,0.01116632,89555.0,89553.0,0.02502]
[1765112487719,0.23449523,89555.0,89553.0,0.02502]
[1765112487920,0.07820417,89556.0,89553.0,0.02502]
[1765112488320,0.22432644,89555.0,89553.0,0.02502]
[1765112489198,0.001,89555.0,89553.0,0.02502]
[1765112492318,0.001,89555.0,89553.0,0.00911]
[1765112492743,0.22432881,89555.0,89553.0,0.00911]
[1765112492944,0.01116669,89552.0,89549.0,0.01072287]
[1765112493158,0.01116669,89552.0,89549.0,0.02188994]
[1765112493361,0.01116657,89553.0,89549.0,0.02188994]
[1765112493588,0.01116644,89554.0,89550.0,0.01116694]
[1765112494296,0.01116644,89554.0,89550.0,0.23450554]
[1765112495290,0.01116644,89554.0,89550.0,0.23450585]
[1765112495515,0.01116644,89554.0,89551.0,0.01116682]
[1765112495854,0.23449587,89554.0,89550.0,0.01116694]
[1765112496025,0.01116644,89554.0,89551.0,0.01116682]
[1765112496366,0.01116632,89555.0,89551.0,0.01116682]
[1765112496534,0.07820405,89557.0,89553.0,0.01116657]
[1765112497390,0.23449014,89556.0,89552.0,0.2345]
[1765112497540,0.01116619,89556.0,89553.0,0.01116657]
[1765112497726,0.01116632,89555.0,89552.0,0.2345]
[1765112497928,0.01116619,89556.0,89553.0,0.01116657]
[1765112498123,0.01116632,89555.0,89554.0,0.00243034]
[1765112498565,0.23449237,89556.0,89554.0,0.00243034]
[1765112498723,0.01216619,89556.0,89552.0,0.01116669]
[1765112498904,0.02279632,89555.0,89551.0,0.23450289]
[1765112499109,0.02279632,89555.0,89550.0,0.01116694]
[1765112499367,0.02279632,89555.0,89554.0,0.00243034]
[1765112500377,0.02379632,89555.0,89554.0,0.00243034]
[1765112502389,0.08545175,89555.0,89554.0,0.00243034]
[1765112503185,0.15248973,89555.0,89554.0,0.00243034]
[1765112503389,0.25716702,89555.0,89554.0,0.00243034]
[1765112503538,0.23574159,89555.0,89554.0,0.00243034]
[1765112503741,0.01116806,89541.0,89537.0,0.0083989]
[1765112504270,0.01116781,89543.0,89538.0,0.23453728]
[1765112505093,0.00844,89546.0,89542.0,0.23452672]
[1765112505241,0.01116731,89547.0,89542.0,0.25889672]
[1765112505446,0.2233439,89548.0,89544.0,0.01116769]
[1765112506052,0.01116707,89549.0,89546.0,0.01116744]
[1765112506257,0.01116707,89549.0,89545.0,0.00911]
[1765112506636,0.23451086,89549.0,89545.0,0.00911]
[1765112506834,0.23451109,89548.0,89545.0,0.00911]
[1765112507033,0.01116744,89546.0,89543.0,0.01116781]
[1765112507692,0.01116744,89546.0,89545.0,0.001]
[1765112508389,0.01116744,89546.0,89543.0,0.01316781]
[1765112508550,0.01116744,89546.0,89543.0,0.01116781]
[1765112508801,0.01116744,89546.0,89545.0,0.001]
[1765112509747,0.01116719,89548.0,89545.0,0.01011]
[1765112509942,0.01116707,89549.0,89545.0,0.01111]
[1765112510148,0.2233439,89548.0,89545.0,0.01111]
[1765112510347,0.01116719,89548.0,89545.0,0.01111]
[1765112510551,0.01116719,89548.0,89545.0,0.02227756]
[1765112510754,0.01116719,89548.0,89545.0,0.04382756]
[1765112510997,0.01116707,89549.0,89546.0,0.01116744]
[1765112512773,0.01116719,89548.0,89545.0,0.02227756]
[1765112512966,0.01116719,89548.0,89545.0,0.02127756]
[1765112513170,0.01116806,89541.0,89538.0,0.01278131]
[1765112513395,0.01116769,89544.0,89539.0,0.01116831]
[1765112513594,0.22336385,89540.0,89538.0,0.00161287]
[1765112514207,0.22336385,89540.0,89538.0,0.00661287]
[1765112514644,0.22336385,89540.0,89538.0,0.00361287]
[1765112514921,0.22336385,89540.0,89538.0,0.00461287]
[1765112515153,0.04896,89539.0,89538.0,0.00661287]
[1765112515337,0.00873,89539.0,89538.0,0.00661287]
[1765112515484,0.22336385,89540.0,89538.0,0.05453287]
[1765112515688,0.22336385,89540.0,89539.0,0.03881]
[1765112516097,0.01116806,89541.0,89539.0,0.03881]
[1765112516497,0.01116806,89541.0,89540.0,0.00042265]
[1765112517138,0.06703798,89543.0,89540.0,0.01568265]
[1765112517333,0.06703798,89543.0,89542.0,0.00911]
[1765112518346,0.01116731,89547.0,89544.0,0.01116769]
[1765112518540,0.04470929,89547.0,89544.0,0.01116769]
[1765112519719,0.03354198,89547.0,89544.0,0.01116769]
[1765112519922,0.01116719,89548.0,89545.0,0.01116756]
[1765112520128,0.001,89547.0,89545.0,0.23451758]
[1765112520980,0.01116707,89549.0,89545.0,0.23451758]
[1765112521140,0.03354067,89550.0,89545.0,0.23451758]
[1765112521385,0.01116682,89551.0,89547.0,0.23451203]
[1765112521566,0.01116694,89550.0,89547.0,0.01116731]
[1765112522287,0.01116694,89550.0,89546.0,0.01116744]
[1765112522492,0.23450417,89551.0,89546.0,0.01116744]
[1765112522493,0.03353954,89553.0,89550.0,0.01116694]
[1765112522638,0.2680376,89553.0,89549.0,0.0163]
[1765112522840,0.22333642,89551.0,89549.0,0.0163]
[1765112523073,0.01116669,89552.0,89549.0,0.0163]
[1765112523290,0.01116694,89550.0,89547.0,0.01216731]
[1765112523481,0.23449816,89553.0,89549.0,0.01116707]
[1765112523639,0.01116682,89551.0,89548.0,0.01116719]
[1765112523853,0.01116669,89552.0,89549.0,0.01116707]
[1765112524748,0.01116669,89552.0,89547.0,0.23712605]
[1765112524749,0.01116694,89550.0,89547.0,0.01378018]
[1765112524986,0.01245,89548.0,89547.0,0.00261287]
[1765112525679,0.01245,89548.0,89547.0,0.00161287]
[1765112526568,0.01245,89548.0,89547.0,0.00261287]
[1765112526792,0.01245,89548.0,89547.0,0.00361287]
[1765112527441,0.01116694,89550.0,89547.0,0.00361287]
[1765112528114,0.22334141,89549.0,89547.0,0.00361287]
[1765112528739,0.01116694,89550.0,89547.0,0.00161287]
[1765112528895,0.01116694,89550.0,89547.0,0.00261287]
[1765112529102,0.22334387,89549.0,89547.0,0.00361287]
[1765112529327,0.01561,89548.0,89547.0,0.00361287]
[1765112529599,0.0383,89548.0,89547.0,0.00261287]
[1765112529949,0.0383,89548.0,89547.0,0.00161287]
[1765112530154,0.0383,89548.0,89547.0,0.00261287]
[1765112530723,0.0383,89548.0,89547.0,0.00361287]
[1765112531615,0.0383,89548.0,89547.0,0.00261287]
[1765112531961,0.0383,89548.0,89547.0,0.00361287]
[1765112536303,0.01561,89548.0,89547.0,0.00361287]
[1765112537090,0.01245,89549.0,89547.0,0.00361287]
[1765112537808,0.01245,89549.0,89547.0,0.00261287]
[1765112538001,0.02027694,89550.0,89547.0,0.00261287]
[1765112538520,0.02027694,89550.0,89547.0,0.00361287]
[1765112538905,0.02027694,89550.0,89547.0,0.00261287]
[1765112539077,0.02027694,89550.0,89547.0,0.00161287]
[1765112539232,0.02027694,89550.0,89547.0,0.00261287]
[1765112539438,0.02027694,89550.0,89547.0,0.01478018]
[1765112539847,0.00911,89550.0,89549.0,0.00911]
[1765112540990,0.00911,89550.0,89549.0,0.01011]
[1765112541515,0.00911,89550.0,89549.0,0.01111]
[1765112542739,0.01116632,89555.0,89551.0,0.01116682]
[1765112542913,0.03478263,89554.0,89549.0,0.02227707]
[1765112543305,0.01116669,89552.0,89549.0,0.02227707]
[1765112543508,0.01116669,89552.0,89549.0,0.01111]
[1765112543720,0.22333642,89551.0,89549.0,0.01111]
[1765112543938,0.01116669,89552.0,89549.0,0.01011]
[1765112544157,0.01111,89551.0,89549.0,0.01011]
[1765112544530,0.23444886,89551.0,89549.0,0.01011]
[1765112544739,0.23444886,89551.0,89549.0,0.00911]
[1765112544935,0.01116694,89550.0,89547.0,0.00161287]
[1765112545694,0.01116694,89550.0,89549.0,0.001]
[1765112546065,0.01116694,89550.0,89547.0,0.00161287]
[1765112546275,0.01116694,89550.0,89547.0,0.00261287]
[1765112546745,0.01116694,89550.0,89547.0,0.00161287]
[1765112546917,0.22334141,89549.0,89547.0,0.00161287]
[1765112547151,0.22334141,89549.0,89547.0,0.00261287]
[1765112547863,0.22334141,89549.0,89547.0,0.00161287]
[1765112547992,0.22334141,89549.0,89547.0,0.00261287]
[1765112548196,0.01111,89551.0,89548.0,0.2233439]
[1765112548390,0.02227682,89551.0,89548.0,0.01116719]
[1765112548638,0.01116694,89550.0,89547.0,0.00361287]
[1765112549014,0.01111,89551.0,89549.0,0.00911]
[1765112549231,0.01111,89551.0,89549.0,0.23244899]
[1765112550416,0.01111,89551.0,89550.0,0.0165]
[1765112550583,0.01111,89551.0,89550.0,0.04018]
[1765112551815,0.01111,89551.0,89549.0,0.00911]
[1765112552018,0.01111,89551.0,89550.0,0.001]
[1765112552454,0.02267,89551.0,89550.0,0.001]
[1765112552655,0.2233425,89549.0,89547.0,0.00161287]
[1765112553761,0.01116694,89550.0,89547.0,0.00161287]
[1765112553939,0.22334141,89549.0,89547.0,0.00261287]
[1765112554532,0.22334141,89549.0,89547.0,0.00161287]
[1765112554893,0.01504,89548.0,89547.0,0.00161287]
[1765112555105,0.03988,89548.0,89547.0,0.00161287]
[1765112555311,0.22334141,89549.0,89547.0,0.00261287]
[1765112555951,0.22334141,89549.0,89547.0,0.00161287]
[1765112556162,0.22334141,89549.0,89547.0,0.00261287]
[1765112556383,0.22334141,89549.0,89547.0,0.00361287]
[1765112556695,0.22334141,89549.0,89547.0,0.00261287]
[1765112557005,0.22334141,89549.0,89547.0,0.00361287]
[1765112557224,0.03383682,89551.0,89547.0,0.01478018]
[1765112557441,0.02227682,89551.0,89547.0,0.01478018]
[1765112557669,0.01111,89551.0,89550.0,0.02561]
[1765112558154,0.01111,89551.0,89550.0,0.02722287]
[1765112558406,0.01116407,89573.0,89565.0,0.01116507]
[1765112558683,0.06202474,89571.0,89565.0,0.01116507]
[1765112558905,0.06202474,89571.0,89567.0,0.01116482]
[1765112559351,0.06202474,89571.0,89568.0,0.23445624]
[1765112561111,0.06202474,89571.0,89568.0,0.23645624]
[1765112561321,0.06202474,89571.0,89568.0,0.0131647]
[1765112561580,0.06202474,89571.0,89569.0,0.22329154]
[1765112562810,0.06202474,89571.0,89569.0,0.22429154]
[1765112564137,0.06202474,89571.0,89569.0,0.22629154]
[1765112564360,0.00039318,89571.0,89569.0,0.22629154]
[1765112572194,0.00039318,89571.0,89570.0,0.04014]
[1765112573161,0.00039318,89571.0,89570.0,0.05086287]
[1765112573364,0.00039318,89571.0,89570.0,0.02612287]
[1765112573713,0.00039318,89571.0,89570.0,0.02912287]
[1765112574595,0.00039318,89571.0,89570.0,0.01372287]
[1765112579538,0.05186318,89571.0,89570.0,0.003]
[1765112579899,0.02867318,89571.0,89570.0,0.003]
[1765112580086,0.00039318,89571.0,89570.0,0.003]
[1765112580695,0.00039318,89571.0,89570.0,0.002]
[1765112580852,0.00039318,89571.0,89570.0,0.04191]
[1765112581244,0.00039318,89571.0,89570.0,0.002]
[1765112582711,0.26459973,89571.0,89570.0,0.002]
[1765112582873,0.26459973,89571.0,89570.0,0.003]
[1765112583293,0.23998973,89571.0,89570.0,0.003]
[1765112583701,0.25115405,89571.0,89567.0,0.01116482]
[1765112583872,0.01116445,89570.0,89567.0,0.01116482]
[1765112585107,0.01116445,89570.0,89565.0,0.01116507]
[1765112585310,0.01116445,89570.0,89561.0,0.00911]
[1765112585311,0.06703798,89568.0,89561.0,0.00911]
[1765112585519,0.01116657,89553.0,89550.0,0.02027694]
[1765112585767,0.23449821,89553.0,89550.0,0.00911]
[1765112585942,0.22334639,89547.0,89546.0,0.0002415]
[1765112587167,0.24614029,89549.0,89546.0,0.0002415]
[1765112587649,0.24614029,89549.0,89546.0,0.0022415]
[1765112588103,0.24614029,89549.0,89546.0,0.0062415]
[1765112588304,0.02279707,89549.0,89546.0,0.0062415]
[1765112588800,0.02279707,89549.0,89546.0,0.01540894]
[1765112589003,0.02279707,89549.0,89546.0,0.01740894]
[1765112589359,0.2233439,89548.0,89546.0,0.0022415]
[1765112589557,0.2233439,89548.0,89546.0,0.0052415]
[1765112590209,0.01163,89549.0,89546.0,0.00485437]
[1765112590361,0.01116682,89551.0,89547.0,0.00911]
[1765112590559,0.01116694,89550.0,89547.0,0.02027731]
[1765112591452,0.07820442,89554.0,89550.0,0.23450485]
[1765112591729,0.07820442,89554.0,89550.0,0.01116694]
[1765112591907,0.06703798,89554.0,89551.0,0.01116682]
[1765112592249,0.07820442,89554.0,89551.0,0.01116682]
[1765112593059,0.07820442,89554.0,89551.0,0.01316682]
[1765112593687,0.07820442,89554.0,89551.0,0.002]
[1765112593917,0.06703798,89554.0,89552.0,0.22333392]
[1765112594231,0.06703798,89554.0,89551.0,0.01416682]
[1765112594807,0.07820442,89554.0,89551.0,0.003]
[1765112595048,0.07820442,89554.0,89551.0,0.002]
[1765112595246,0.01655,89552.0,89551.0,0.002]
[1765112595581,0.04142,89552.0,89551.0,0.002]
[1765112595828,0.01116694,89550.0,89544.0,0.17931678]
[1765112596160,0.0067,89549.0,89544.0,0.17931678]
[1765112596557,0.01786707,89549.0,89546.0,0.01116744]
[1765112597105,0.01786707,89549.0,89545.0,0.01116756]
[1765112597311,0.01116719,89548.0,89545.0,0.01116756]
[1765112597514,0.01116731,89547.0,89544.0,0.002]
[1765112598331,0.01786707,89549.0,89545.0,0.01116756]
[1765112598535,0.2345111,89548.0,89546.0,0.002]
[1765112598947,0.2345111,89548.0,89546.0,0.003]
[1765112599327,0.2345111,89548.0,89544.0,0.01316769]
[1765112599718,0.2345111,89548.0,89545.0,0.002]
[1765112599913,0.01116731,89547.0,89541.0,0.23246929]
[1765112600182,0.24601313,89544.0,89540.0,0.02027819]
[1765112600548,0.01116781,89543.0,89540.0,0.00911]
[1765112601115,0.01116781,89543.0,89540.0,0.02027819]
[1765112601523,0.01116806,89541.0,89537.0,0.02362856]
[1765112601727,0.01116806,89541.0,89537.0,0.01116856]
[1765112601929,0.01116806,89541.0,89525.0,0.00911]
[1765112601930,0.01116931,89531.0,89525.0,0.00911]
[1765112602174,0.23456325,89529.0,89525.0,0.00011859]
[1765112602376,0.01116968,89528.0,89525.0,0.00011859]
[1765112602530,0.01116968,89528.0,89525.0,0.01128865]
[1765112602734,0.01116956,89529.0,89525.0,0.01128865]
[1765112602971,0.02265944,89530.0,89527.0,0.01116981]
[1765112603194,0.01149,89530.0,89527.0,0.01116981]
[1765112603611,0.02771968,89528.0,89525.0,0.00811859]
[1765112603807,0.01655,89526.0,89525.0,0.00411859]
[1765112604187,0.01116968,89528.0,89525.0,0.01528865]
[1765112604611,0.01116968,89528.0,89525.0,0.01128865]
[1765112604819,0.01116956,89529.0,89526.0,0.01116993]
[1765112605131,0.02265944,89530.0,89527.0,0.003]
[1765112605361,0.02265944,89530.0,89527.0,0.01716981]
[1765112605634,0.02265944,89530.0,89527.0,0.01116981]
[1765112605838,0.01149,89530.0,89527.0,0.01116981]
[1765112606402,0.01149,89530.0,89527.0,0.01216981]
[1765112606602,0.02265944,89530.0,89527.0,0.01216981]
[1765112606828,0.02265944,89530.0,89529.0,0.0005133]
[1765112608047,0.01149,89530.0,89529.0,0.0005133]
[1765112608442,0.01149,89530.0,89529.0,0.0015133]
[1765112608620,0.01149,89530.0,89529.0,0.0025133]
[1765112611299,0.00813917,89530.0,89529.0,0.0025133]
[1765112614892,0.04955917,89530.0,89529.0,0.0025133]
[1765112615727,0.01116881,89535.0,89530.0,0.01116944]
[1765112615927,0.01116894,89534.0,89530.0,0.02632944]
[1765112616337,0.30157529,89538.0,89534.0,0.01116894]
[1765112616824,0.01116856,89537.0,89531.0,0.01116931]
[1765112617038,0.01116881,89535.0,89531.0,0.01116931]
[1765112617243,0.01116894,89534.0,89531.0,0.01116931]
[1765112617448,0.03603894,89534.0,89527.0,0.01116981]
[1765112617621,0.01116919,89532.0,89529.0,0.01116956]
[1765112617889,0.01116881,89535.0,89531.0,0.01116931]
[1765112618309,0.01116856,89537.0,89533.0,0.01116906]
[1765112618794,0.06703798,89538.0,89534.0,0.01116894]
[1765112618999,0.06703798,89538.0,89535.0,0.01116881]
[1765112619831,0.06703798,89538.0,89535.0,0.23454514]
[1765112620493,0.06703798,89538.0,89535.0,0.01116881]
[1765112620696,0.01116856,89537.0,89534.0,0.002]
[1765112620992,0.01116881,89535.0,89532.0,0.01116919]
[1765112621194,0.01116881,89535.0,89534.0,0.00036231]
[1765112621424,0.22337383,89536.0,89535.0,0.002]
[1765112621736,0.01116856,89537.0,89535.0,0.00233211]
[1765112622001,0.01657,89536.0,89534.0,0.01316894]
[1765112622207,0.01657,89536.0,89534.0,0.01116894]
[1765112622409,0.03934,89536.0,89534.0,0.01116894]
[1765112622807,0.01116881,89535.0,89532.0,0.01316919]
[1765112623008,0.01116881,89535.0,89532.0,0.002]
[1765112623212,0.22337882,89534.0,89532.0,0.002]
[1765112623421,0.01116919,89532.0,89529.0,0.01116956]
[1765112623968,0.23455323,89532.0,89529.0,0.01116956]
[1765112624166,0.01116931,89531.0,89527.0,0.23456525]
[1765112624522,0.01116931,89531.0,89528.0,0.01116968]
[1765112624701,0.01116919,89532.0,89529.0,0.01716956]
[1765112624904,0.01116919,89532.0,89529.0,0.01416956]
[1765112625082,0.01116919,89532.0,89529.0,0.01116956]
[1765112625794,0.03393931,89531.0,89527.0,0.007]
[1765112625996,0.2233888,89530.0,89527.0,0.007]
[1765112626532,0.23455824,89530.0,89527.0,0.003]
[1765112626700,0.01116944,89530.0,89529.0,0.003]
[1765112626898,0.01116944,89530.0,89529.0,0.006]
[1765112627127,0.03906944,89530.0,89529.0,0.003]
[1765112627446,0.2233913,89529.0,89527.0,0.004]
[1765112627644,0.2233913,89529.0,89525.0,0.00011859]
[1765112627645,0.22339629,89527.0,89525.0,0.00011859]
[1765112627827,0.01657,89526.0,89525.0,0.00011859]
[1765112628008,0.03934,89526.0,89525.0,0.00011859]
[1765112629474,0.01657,89526.0,89525.0,0.00011859]
[1765112630245,0.01116906,89533.0,89529.0,0.01116956]
[1765112630453,0.01116931,89531.0,89528.0,0.01116968]
[1765112630619,0.01116881,89535.0,89530.0,0.01116944]
[1765112630825,0.22337197,89537.0,89532.0,0.01116919]
[1765112630826,0.23454053,89537.0,89532.0,0.01116919]
[1765112631248,0.01046986,89536.0,89532.0,0.01116919]
[1765112631459,0.02163855,89536.0,89532.0,0.01116919]
[1765112631791,0.23454541,89535.0,89531.0,0.01202]
[1765112632010,0.01116894,89534.0,89531.0,0.01202]
[1765112633263,0.26839053,89533.0,89529.0,0.01168286]
[1765112633505,0.23455562,89531.0,89527.0,0.01116981]
[1765112633708,0.01116931,89531.0,89527.0,0.01116981]
[1765112633840,0.01116931,89531.0,89528.0,0.01116968]
[1765112634382,0.01116919,89532.0,89529.0,0.01416956]
[1765112634815,0.02223906,89533.0,89529.0,0.01116956]
[1765112635895,0.02223906,89533.0,89528.0,0.23856318]
[1765112635896,0.01116931,89531.0,89528.0,0.004]
[1765112636196,0.01116944,89530.0,89527.0,0.01416981]
[1765112636378,0.01116944,89530.0,89527.0,0.01116981]
[1765112636577,0.01116944,89530.0,89529.0,0.003]
[1765112636894,0.2233888,89530.0,89528.0,0.003]
[1765112637131,0.01116931,89531.0,89528.0,0.004]
[1765112637534,0.01116931,89531.0,89527.0,0.01416981]
[1765112637958,0.01116931,89531.0,89529.0,0.003]
[1765112638128,0.01116931,89531.0,89527.0,0.01116981]
[1765112638451,0.01116931,89531.0,89528.0,0.003]
[1765112638825,0.2233888,89530.0,89528.0,0.003]
[1765112639317,0.2233888,89530.0,89529.0,0.0005133]
[1765112639706,0.2627288,89530.0,89529.0,0.0005133]
[1765112640657,0.2627288,89530.0,89529.0,0.0035133]
[1765112640897,0.2627288,89530.0,89529.0,0.0055133]
[1765112641047,0.2627288,89530.0,89529.0,0.0025133]
[1765112641253,0.2627288,89530.0,89529.0,0.0045133]
[1765112643222,0.2399588,89530.0,89529.0,0.0045133]
[1765112643360,0.2625188,89530.0,89529.0,0.0045133]
[1765112644782,0.03913,89530.0,89529.0,0.0045133]
[1765112645534,0.2625188,89530.0,89529.0,0.0045133]
[1765112646214,0.34063469,89530.0,89529.0,0.0045133]
[1765112646439,0.27460199,89530.0,89529.0,0.0045133]
[1765112647183,0.27460199,89530.0,89529.0,0.0025133]
[1765112647389,0.27460199,89530.0,89529.0,0.0005133]
[1765112647563,0.27460199,89530.0,89529.0,0.0015133]
[1765112647979,0.27460199,89530.0,89529.0,0.0035133]
[1765112648880,0.26413167,89530.0,89529.0,0.0035133]
[1765112651290,0.26078084,89530.0,89529.0,0.0035133]
[1765112651642,0.27124697,89530.0,89529.0,0.0035133]
[1765112651846,0.27124697,89530.0,89529.0,0.5035133]
[1765112654249,0.59424697,89530.0,89529.0,0.5035133]
[1765112654451,0.70103597,89530.0,89529.0,0.5035133]
[1765112654879,1.13458924,89530.0,89529.0,0.5035133]
[1765112655732,0.72891324,89530.0,89529.0,0.5015133]
[1765112655945,0.72891324,89530.0,89529.0,0.5025133]
[1765112656149,0.72891324,89530.0,89529.0,0.5015133]
[1765112656355,0.75903504,89530.0,89529.0,0.5005133]
[1765112656573,0.76103504,89530.0,89529.0,0.5005133]
[1765112658354,0.73091324,89530.0,89529.0,0.5005133]
[1765112659336,0.79343623,89530.0,89529.0,0.5005133]
[1765112659548,0.90314129,89530.0,89529.0,0.5005133]
[1765112659742,2.24019329,89530.0,89529.0,0.5005133]
[1765112660686,2.23819329,89530.0,89529.0,0.5005133]
[1765112661038,2.24219329,89530.0,89529.0,0.5005133]
[1765112662274,2.28230114,89530.0,89529.0,0.5005133]
[1765112662424,2.28330114,89530.0,89529.0,0.5005133]
[1765112664329,2.24319329,89530.0,89529.0,0.5005133]
[1765112664533,2.24319329,89530.0,89525.0,0.00011859]
[1765112664534,0.54639878,89526.0,89525.0,0.00011859]
[1765112664884,0.54639878,89526.0,89500.0,0.0004]
[1765112664885,0.22346119,89501.0,89500.0,0.0004]
[1765112665046,0.26539521,89501.0,89500.0,0.0004]
[1765112665450,0.26539521,89501.0,89500.0,0.001276]
[1765112666266,0.26539521,89501.0,89500.0,0.005276]
[1765112666791,0.69610111,89501.0,89500.0,0.005276]
[1765112667011,1.40002211,89501.0,89500.0,0.008276]
[1765112667267,1.41191211,89501.0,89500.0,0.008276]